fUSD/lending_fUSD_20240427
["ID","MTS","AMOUNT","RATE_DAILY","PERIOD"]
[323766501,1714260631645,-1242.50224029,9.284e-05,2]
[323766502,1714260631654,-76.5901788,9.284e-05,2]
[323766503,1714260631689,-185.80494455,9.284e-05,2]
[323766504,1714260631698,-524.19857863,9.285e-05,2]
[323766505,1714260631708,-305.45205436,9.286e-05,2]
[323766506,1714260631719,-4585.21849051,9.287e-05,2]
[323766507,1714260631729,-2942.22592195,0.00010793,2]
[323766508,1714260631741,-224.96235544,0.00010793,2]
[323766509,1714260631750,-139.22578308,0.00010794,2]
[323766510,1714260631761,-1087.10900317,0.00010794,2]
[323766511,1714260631772,-2368.56921375,0.00010794,2]
[323766512,1714260631781,-155.0,0.000109,2]
[323766513,1714260631791,-368.19,0.000109,2]
[323766514,1714260631800,-499.99,0.000109,2]
[323766515,1714260631809,-157.91232816,0.00011001,2]
[323766516,1714260631836,-866.90767184,0.00011001,2]
[323766517,1714260631846,-2135.32866092,0.0001106,2]
[323766518,1714260631858,-9313.21597719,0.0001106,2]
[323766519,1714260631909,-1214.03923066,0.0001106,2]
[323766520,1714260631921,-2723.75840732,0.0001106,2]
[323766534,1714260638085,-537.18772391,0.0001106,2]
[323766536,1714260638094,-313.08727609,0.00011255,2]
[323766558,1714260638272,-577.50272391,0.00011255,2]
[323766559,1714260638282,-58.38723609,0.00011274,2]
[323766560,1714260638294,-191.61276391,0.00011274,2]
[323766561,1714260638303,-153.468797,0.0001128,2]
[323766562,1714260638312,-251.032043,0.0001128,2]
[323766563,1714260638322,-155.22,0.00011382,10]
[323766564,1714260638331,-200.0,0.00011444,2]
[323766565,1714260638340,-161.34,0.00011458,2]
[323766566,1714260638349,-157.47,0.00011662,2]
[323766567,1714260638358,-157.47,0.0001172,2]
[323766568,1714260638367,-198.2,0.0001175,3]
[323766569,1714260638376,-697.0,0.00012328,2]
[323766570,1714260638385,-1000.0,0.00012596,2]
[323766571,1714260638394,-40044.6051,0.00012596,2]
[323766572,1714260638403,-2469.4213,0.00012596,2]
[323766573,1714260638412,-7500.0,0.00012596,2]
[323766574,1714260638421,-324.2587156,0.00012597,2]
[323766575,1714260638429,-150.00799355,0.00012598,2]
[323766576,1714260638439,-187.0,0.00012614,2]
[323766577,1714260638449,-890.59,0.00012662,2]
[323766578,1714260638458,-251.67117492,0.00012667,2]
[323766579,1714260638467,-500.0,0.00012695,2]
[323766580,1714260638477,-686254.17384692,0.00012696,2]
[323766581,1714260638486,-156254.17625232,0.00012697,2]
[323766582,1714260638498,-88745.82374768,0.00012697,2]
[323766583,1714260638508,-168.52611107,0.00012698,2]
[323766584,1714260638517,-198.2,0.0001277,3]
[323766585,1714260638526,-155.0,0.00012796,2]
[323766586,1714260638535,-8997.14,0.00012796,2]
[323766587,1714260638544,-99333.8381,0.00012798,2]
[323766588,1714260638553,-200.0,0.00012875,2]
[323766589,1714260638562,-8997.14,0.00012897,2]
[323766590,1714260638571,-317.01746459,0.00012899,2]
[323766591,1714260638582,-10000.0,0.000129,2]
[323766592,1714260638591,-325.29107503,0.00012998,2]
[323766593,1714260638600,-213.94764815,0.00012998,2]
[323766594,1714260638609,-424.54664826,0.00012998,2]
[323766595,1714260638618,-1000.0,0.00012999,2]
[323766596,1714260638627,-814.13331328,0.00012999,2]
[323766597,1714260638637,-1000.0,0.00012999,2]
[323766598,1714260638648,-967.67642286,0.00012999,2]
[323766599,1714260638658,-437150.62040453,0.00013,2]
[323766600,1714260638667,-546441.17118594,0.00013,2]
[323766601,1714260638678,-179.73027073,0.00013,2]
[323766602,1714260638689,-357.29757033,0.00013,2]
[323766603,1714260638699,-2000.0,0.00013,2]
[323766604,1714260638710,-24155.70966418,0.00013,2]
[323766605,1714260638721,-3713.37619975,0.00013,2]
[323766606,1714260638737,-6583.56000001,0.00013,2]
[323766607,1714260638749,-510.165,0.00013,2]
[323766608,1714260638788,-573.2828905,0.00013,2]
[323766609,1714260638801,-358.33485164,0.00013,2]
[323766615,1714260639791,-879.51,9.836e-05,2]
[323766616,1714260639801,-879.51,0.00012099,2]
[323766617,1714260639810,-366.20583446,0.00013,2]
[323766618,1714260639834,-802.9568297,0.00013,2]
[323766619,1714260639880,-688.15196471,0.00013,2]
[323766620,1714260639891,-389.72999925,0.00013,2]
[323766621,1714260639906,-505.53116172,0.00013,2]
[323766622,1714260639918,-497.44743893,0.00013,2]
[323766623,1714260639929,-5024.67506042,0.00013,2]
[323766624,1714260639940,-680.51216495,0.00013,2]
[323766625,1714260640079,-652.20074213,0.00013,2]
[323766626,1714260640092,-495.28604812,0.00013,2]
[323766627,1714260640104,-617.42097586,0.00013,2]
[323766628,1714260640174,-807.724,0.00013,2]
[323766630,1714260640186,-1163.68068873,0.00013,2]
[323766632,1714260640198,-7225.95188826,0.00013,2]
[323766633,1714260640254,-339.25813426,0.00013,2]
[323766634,1714260640265,-631.33700009,0.00013,2]
[323766635,1714260640277,-345.59999998,0.00013,2]
[323766662,1714260642754,-1349.49322393,0.0001128,2]
[323766663,1714260642764,-40409.03243074,0.00013,2]
[323766664,1714260642773,-3000.0,0.00013,2]
[323766665,1714260642783,-866.68214589,0.00013,2]
[323766666,1714260642792,-697.0,0.00013013,2]
[323766667,1714260642801,-6262.60753865,0.00013193,2]
[323766668,1714260642812,-3471.54256328,0.00013226,2]
[323766669,1714260642822,-1556.64900482,0.00013296,2]
[323766670,1714260642832,-183.58,0.00013361,2]
[323766671,1714260642841,-6161.85,0.00013425,2]
[323766672,1714260642850,-3471.54256328,0.00013447,2]
[323766673,1714260642859,-1556.64900482,0.00013571,2]
[323766674,1714260642869,-500.0,0.00013699,2]
[323766675,1714260642878,-2751.0,0.00013699,2]
[323766676,1714260642888,-1000.0,0.00013699,2]
[323766677,1714260642897,-250.0,0.00013699,2]
[323766678,1714260642906,-200.0,0.00013699,2]
[323766679,1714260642915,-1024.82,0.0001374,2]
[323766680,1714260642925,-3471.54256328,0.00013745,2]
[323766681,1714260642934,-198.2,0.000138,3]
[323766682,1714260642944,-1556.64900482,0.00013941,2]
[323766683,1714260642958,-187.0,0.00013953,2]
[323766684,1714260642968,-800.0,0.00013973,2]
[323766685,1714260642978,-2000.0,0.00014,2]
[323766686,1714260642987,-150.86,0.00014,2]
[323766687,1714260642997,-150.86,0.00014,2]
[323766688,1714260643006,-150.86,0.00014,2]
[323766689,1714260643015,-150.86,0.00014,2]
[323766690,1714260643025,-150.86,0.00014,2]
[323766691,1714260643035,-150.86,0.00014,2]
[323766692,1714260643044,-150.86,0.00014,2]
[323766693,1714260643054,-150.86,0.00014,2]
[323766694,1714260643063,-150.86,0.00014,2]
[323766695,1714260643073,-150.86,0.00014,2]
[323766696,1714260643082,-150.86,0.00014,2]
[323766697,1714260643091,-890.59,0.00014069,2]
[323766698,1714260643101,-1556.64900482,0.00014176,2]
[323766699,1714260643110,-3471.54256328,0.00014228,2]
[323766700,1714260643119,-200.0,0.00014305,2]
[323766701,1714260643128,-879.51,0.00014363,2]
[323766702,1714260643137,-448.44133,0.00014521,2]
[323766703,1714260643146,-198.2,0.0001482,3]
[323766705,1714260643155,-3997.73303434,0.000149,2]
[323766707,1714260643167,-804.04913519,0.000149,2]
[323766709,1714260643178,-1904.30285046,0.000149,2]
[323766710,1714260643188,-150.86,0.0001499,2]
[323766711,1714260643197,-826.83714954,0.00015,2]
[323766712,1714260643208,-4540.0,0.00015,2]
[323766716,1714260643231,-1066.32182804,0.00015,2]
[323766718,1714260643246,-489.23716,0.00015,2]
[323766720,1714260643257,-736.37395775,0.00015,2]
[323766721,1714260643276,-1480.22990467,0.00015,2]
[323766722,1714260643285,-155.0,0.00015,2]
[323766723,1714260643294,-1185.29233321,0.00015,2]
[323766724,1714260643303,-2000.0,0.00015,2]
[323766725,1714260643314,-1278.0,0.00015,2]
[323766726,1714260643324,-1002.34,0.00015,2]
[323766727,1714260643335,-210.05253494,0.00015068,2]
[323766728,1714260643348,-89.94746506,0.00015068,2]
[323766729,1714260643357,-324.2587156,0.00015075,2]
[323766730,1714260643366,-168.06382834,0.00015166,2]
[323766731,1714260643378,-326.56182,0.00015166,2]
[323766732,1714260643406,-1937.02203989,0.00015166,2]
[323766733,1714260643419,-690.69,0.00015166,2]
[323766734,1714260643431,-3140.26985035,0.00015166,2]
[323766735,1714260643441,-187.0,0.00015291,2]
[323766736,1714260643452,-448.44133,0.00015342,2]
[323766737,1714260643461,-890.59,0.00015476,2]
[323766738,1714260643471,-155.0,0.000155,2]
[323766739,1714260643481,-200.0,0.00015736,2]
[323766740,1714260643490,-198.2,0.0001584,3]
[323766741,1714260643499,-167.0,0.00015919,2]
[323766742,1714260643513,-2000.0,0.00016,2]
[323766743,1714260643523,-448.44133,0.00016164,2]
[323766744,1714260643532,-200.0,0.00016438,2]
[323766745,1714260643540,-300.0,0.00016438,2]
[323766746,1714260643550,-167.0,0.00016445,2]
[323766747,1714260643559,-154.10095001,0.0001647,2]
[323766748,1714260643568,-1024.82,0.0001648,2]
[323766749,1714260643577,-2349.62860644,0.000165,2]
[323766750,1714260643587,-1002.34,0.0001662,2]
[323766751,1714260643596,-879.51,0.00016627,2]
[323766752,1714260643606,-178.66,0.00016712,2]
[323766753,1714260643617,-198.2,0.0001687,3]
[323766754,1714260643767,-890.59,0.00016883,2]
[323766755,1714260643777,-167.0,0.0001697,2]
[323766756,1714260643787,-448.44133,0.00016986,2]
[323766757,1714260643795,-2000.0,0.00017,2]
[323766758,1714260643804,-598.0,0.00017005,2]
[323766759,1714260643813,-6262.60753858,0.0001714,2]
[323766760,1714260643822,-200.0,0.00017166,2]
[323766761,1714260643832,-598.0,0.0001718,2]
[323766762,1714260643841,-2336.95719017,0.0001725,2]
[323766763,1714260643850,-598.0,0.00017356,2]
[323766764,1714260643860,-167.0,0.00017496,2]
[323766765,1714260643870,-559.28635903,0.00017531,2]
[323766766,1714260643878,-1033.99475498,0.00017531,2]
[323766767,1714260643888,-598.0,0.00017531,2]
[323766768,1714260643897,-324.2587156,0.00017553,2]
[323766769,1714260643907,-159.37394238,0.00017588,2]
[323766770,1714260643918,-200.0,0.00017668,2]
[323766771,1714260643927,-598.0,0.00017706,2]
[323766772,1714260643937,-206.16645908,0.0001778,2]
[323766773,1714260643946,-500.0,0.00017808,2]
[323766774,1714260643956,-150.86,0.00017868,2]
[323766775,1714260643965,-29856.86103717,0.00017878,2]
[323766776,1714260643975,-1989.45717254,0.00017878,2]
[323766777,1714260643985,-891.78557936,0.00017878,2]
[323766778,1714260643994,-167.4850072,0.00017878,2]
[323766779,1714260644004,-76756.53005702,0.00017878,2]
[323766780,1714260644012,-3595.68883701,0.00017878,2]
[323766781,1714260644022,-155.44721549,0.00017878,2]
[323766782,1714260644031,-235.50105996,0.00017878,2]
[323766783,1714260644041,-300.0,0.00017878,2]
[323766784,1714260644050,-300.0,0.00017878,2]
[323766785,1714260644060,-300.0,0.00017878,2]
[323766786,1714260644070,-300.0,0.00017878,2]
[323766787,1714260644080,-300.0,0.00017878,2]
[323766788,1714260644090,-300.0,0.00017878,2]
[323766789,1714260644100,-300.0,0.00017878,2]
[323766790,1714260644110,-300.0,0.00017878,2]
[323766791,1714260644120,-300.0,0.00017878,2]
[323766792,1714260644130,-300.0,0.00017878,2]
[323766793,1714260644140,-300.0,0.00017878,2]
[323766794,1714260644150,-300.0,0.00017878,2]
[323766795,1714260644159,-300.0,0.00017878,2]
[323766796,1714260644168,-351.0,0.00017878,2]
[323766797,1714260644178,-408.61554877,0.00017878,2]
[323766798,1714260644188,-18008.68327095,0.0001788,2]
[323766799,1714260644198,-18008.68327091,0.0001788,2]
[323766800,1714260644208,-18008.68327091,0.0001788,2]
[323766801,1714260644216,-1734.1673052,0.0001788,2]
[323766802,1714260644228,-1734.16730514,0.0001788,2]
[323766803,1714260644237,-1734.16730514,0.0001788,2]
[323766804,1714260644246,-1734.16730514,0.0001788,2]
[323766805,1714260644257,-598.0,0.00017882,2]
[323766806,1714260644268,-198.2,0.0001789,3]
[323766807,1714260644277,-260.40260208,0.000179,2]
[323766808,1714260644286,-358.9104,0.000179,2]
[323766809,1714260644296,-510.52293296,0.000179,2]
[323766810,1714260644306,-181.6668584,0.00017929,2]
[323766811,1714260644315,-150.86,0.0001799,2]
[323766812,1714260644324,-1000.0,0.00017999,2]
[323766813,1714260644334,-1000.0,0.00017999,2]
[323766814,1714260644343,-3071.74410546,0.00018,2]
[323766815,1714260644352,-1000.0,0.00018,2]
[323766816,1714260644362,-2000.0,0.00018,2]
[323766817,1714260644372,-500.0,0.00018,2]
[323766818,1714260644382,-500.0,0.00018,2]
[323766819,1714260644393,-500.0,0.00018,2]
[323766820,1714260644402,-500.0,0.00018,2]
[323766821,1714260644413,-500.0,0.00018,2]
[323766822,1714260644423,-500.0,0.00018,2]
[323766823,1714260644433,-500.0,0.00018,2]
[323766824,1714260644445,-500.0,0.00018,2]
[323766825,1714260644454,-500.0,0.00018,2]
[323766826,1714260644464,-500.0,0.00018,2]
[323766827,1714260644474,-500.0,0.00018,2]
[323766828,1714260644483,-500.0,0.00018,2]
[323766829,1714260644493,-500.0,0.00018,2]
[323766830,1714260644504,-500.0,0.00018,2]
[323766831,1714260644515,-500.0,0.00018,2]
[323766832,1714260644525,-500.0,0.00018,2]
[323766833,1714260644535,-500.0,0.00018,2]
[323766834,1714260644544,-500.0,0.00018,2]
[323766835,1714260644555,-500.0,0.00018,2]
[323766836,1714260644567,-500.0,0.00018,2]
[323766837,1714260644587,-500.0,0.00018,2]
[323766838,1714260644602,-500.0,0.00018,2]
[323766839,1714260644621,-500.0,0.00018,2]
[323766840,1714260644640,-500.0,0.00018,2]
[323766841,1714260644654,-500.0,0.00018,2]
[323766842,1714260644670,-500.0,0.00018,2]
[323766843,1714260644688,-500.0,0.00018,2]
[323766844,1714260644703,-500.0,0.00018,2]
[323766845,1714260644721,-500.0,0.00018,2]
[323766846,1714260644736,-500.0,0.00018,2]
[323766847,1714260644754,-500.0,0.00018,2]
[323766848,1714260644773,-500.0,0.00018,2]
[323766849,1714260644788,-500.0,0.00018,2]
[323766850,1714260644800,-500.0,0.00018,2]
[323766851,1714260644815,-500.0,0.00018,2]
[323766852,1714260644831,-500.0,0.00018,2]
[323766853,1714260644844,-500.0,0.00018,2]
[323766854,1714260644858,-500.0,0.00018,2]
[323766855,1714260644876,-500.0,0.00018,2]
[323766856,1714260644892,-500.0,0.00018,2]
[323766857,1714260644906,-500.0,0.00018,2]
[323766858,1714260644919,-500.0,0.00018,2]
[323766859,1714260644933,-500.0,0.00018,2]
[323766860,1714260644947,-500.0,0.00018,2]
[323766861,1714260644962,-500.0,0.00018,2]
[323766862,1714260644977,-500.0,0.00018,2]
[323766863,1714260644991,-500.0,0.00018,2]
[323766864,1714260645006,-500.0,0.00018,2]
[323766865,1714260645020,-500.0,0.00018,2]
[323766866,1714260645035,-500.0,0.00018,2]
[323766867,1714260645050,-500.0,0.00018,2]
[323766868,1714260645064,-500.0,0.00018,2]
[323766869,1714260645078,-500.0,0.00018,2]
[323766870,1714260645092,-500.0,0.00018,2]
[323766871,1714260645107,-500.0,0.00018,2]
[323766872,1714260645121,-500.0,0.00018,2]
[323766873,1714260645136,-500.0,0.00018,2]
[323766874,1714260645151,-500.0,0.00018,2]
[323766875,1714260645165,-500.0,0.00018,2]
[323766876,1714260645179,-500.0,0.00018,2]
[323766877,1714260645194,-500.0,0.00018,2]
[323766878,1714260645208,-500.0,0.00018,2]
[323766879,1714260645224,-500.0,0.00018,2]
[323766880,1714260645239,-500.0,0.00018,2]
[323766881,1714260645253,-500.0,0.00018,2]
[323766882,1714260645268,-500.0,0.00018,2]
[323766883,1714260645282,-500.0,0.00018,2]
[323766884,1714260645298,-500.0,0.00018,2]
[323766885,1714260645313,-500.0,0.00018,2]
[323766886,1714260645328,-500.0,0.00018,2]
[323766887,1714260645343,-500.0,0.00018,2]
[323766888,1714260645357,-500.0,0.00018,2]
[323766889,1714260645372,-500.0,0.00018,2]
[323766890,1714260645387,-500.0,0.00018,2]
[323766891,1714260645402,-500.0,0.00018,2]
[323766892,1714260645417,-500.0,0.00018,2]
[323766893,1714260645432,-500.0,0.00018,2]
[323766895,1714260645446,-500.0,0.00018,2]
[323766897,1714260645460,-500.0,0.00018,2]
[323766898,1714260645475,-500.0,0.00018,2]
[323766899,1714260645490,-500.0,0.00018,2]
[323766900,1714260645508,-500.0,0.00018,2]
[323766902,1714260645525,-500.0,0.00018,2]
[323766906,1714260645540,-500.0,0.00018,2]
[323766907,1714260645555,-500.0,0.00018,2]
[323766908,1714260645570,-500.0,0.00018,2]
[323766909,1714260645585,-500.0,0.00018,2]
[323766910,1714260645600,-500.0,0.00018,2]
[323766911,1714260645615,-500.0,0.00018,2]
[323766912,1714260645630,-500.0,0.00018,2]
[323766913,1714260645644,-500.0,0.00018,2]
[323766914,1714260645658,-500.0,0.00018,2]
[323766915,1714260645672,-500.0,0.00018,2]
[323766916,1714260645686,-500.0,0.00018,2]
[323766917,1714260645701,-500.0,0.00018,2]
[323766918,1714260645716,-500.0,0.00018,2]
[323766919,1714260645730,-500.0,0.00018,2]
[323766920,1714260645745,-500.0,0.00018,2]
[323766921,1714260645760,-500.0,0.00018,2]
[323766922,1714260645775,-500.0,0.00018,2]
[323766923,1714260645789,-500.0,0.00018,2]
[323766924,1714260645803,-500.0,0.00018,2]
[323766925,1714260645818,-500.0,0.00018,2]
[323766926,1714260645832,-500.0,0.00018,2]
[323766927,1714260645847,-500.0,0.00018,2]
[323766928,1714260645862,-500.0,0.00018,2]
[323766929,1714260645877,-500.0,0.00018,2]
[323766930,1714260645891,-500.0,0.00018,2]
[323766931,1714260645906,-500.0,0.00018,2]
[323766935,1714260646096,-500.0,0.00018,2]
[323766936,1714260646117,-500.0,0.00018,2]
[323766937,1714260646126,-500.0,0.00018,2]
[323766938,1714260646135,-500.0,0.00018,2]
[323766939,1714260646144,-500.0,0.00018,2]
[323766940,1714260646153,-500.0,0.00018,2]
[323766941,1714260646163,-500.0,0.00018,2]
[323766942,1714260646172,-500.0,0.00018,2]
[323766943,1714260646181,-500.0,0.00018,2]
[323766944,1714260646189,-500.0,0.00018,2]
[323766945,1714260646198,-500.0,0.00018,2]
[323766946,1714260646208,-500.0,0.00018,2]
[323766947,1714260646217,-500.0,0.00018,2]
[323766948,1714260646227,-500.0,0.00018,2]
[323766949,1714260646236,-500.0,0.00018,2]
[323766950,1714260646245,-500.0,0.00018,2]
[323766951,1714260646255,-500.0,0.00018,2]
[323766952,1714260646264,-500.0,0.00018,2]
[323766953,1714260646273,-500.0,0.00018,2]
[323766954,1714260646307,-500.0,0.00018,2]
[323766955,1714260646318,-500.0,0.00018,2]
[323766956,1714260646328,-500.0,0.00018,2]
[323766957,1714260646338,-500.0,0.00018,2]
[323766958,1714260646349,-500.0,0.00018,2]
[323766959,1714260646359,-500.0,0.00018,2]
[323766960,1714260646370,-500.0,0.00018,2]
[323766961,1714260646380,-500.0,0.00018,2]
[323766962,1714260646390,-500.0,0.00018,2]
[323766963,1714260646400,-500.0,0.00018,2]
[323766964,1714260646410,-500.0,0.00018,2]
[323766965,1714260646421,-500.0,0.00018,2]
[323766966,1714260646435,-500.0,0.00018,2]
[323766967,1714260646448,-500.0,0.00018,2]
[323766968,1714260646460,-500.0,0.00018,2]
[323766969,1714260646471,-500.0,0.00018,2]
[323766970,1714260646481,-500.0,0.00018,2]
[323766971,1714260646491,-500.0,0.00018,2]
[323766972,1714260646501,-500.0,0.00018,2]
[323766973,1714260646516,-500.0,0.00018,2]
[323766974,1714260646527,-500.0,0.00018,2]
[323766975,1714260646537,-500.0,0.00018,2]
[323766976,1714260646549,-500.0,0.00018,2]
[323766977,1714260646559,-500.0,0.00018,2]
[323766978,1714260646569,-500.0,0.00018,2]
[323766979,1714260646579,-500.0,0.00018,2]
[323766980,1714260646592,-500.0,0.00018,2]
[323766981,1714260646604,-500.0,0.00018,2]
[323766982,1714260646615,-500.0,0.00018,2]
[323766983,1714260646626,-500.0,0.00018,2]
[323766984,1714260646637,-500.0,0.00018,2]
[323766985,1714260646647,-500.0,0.00018,2]
[323766986,1714260646658,-500.0,0.00018,2]
[323766987,1714260646669,-500.0,0.00018,2]
[323766988,1714260646679,-500.0,0.00018,2]
[323766989,1714260646690,-500.0,0.00018,2]
[323766990,1714260646700,-500.0,0.00018,2]
[323766991,1714260646710,-500.0,0.00018,2]
[323766992,1714260646723,-500.0,0.00018,2]
[323766993,1714260646733,-500.0,0.00018,2]
[323766994,1714260646742,-500.0,0.00018,2]
[323766995,1714260646753,-500.0,0.00018,2]
[323766996,1714260646761,-3000.0,0.00018,2]
[323766997,1714260646772,-500.0,0.00018,2]
[323766998,1714260646783,-500.0,0.00018,2]
[323766999,1714260646795,-500.0,0.00018,2]
[323767000,1714260646805,-500.0,0.00018,2]
[323767001,1714260646816,-500.0,0.00018,2]
[323767002,1714260646827,-500.0,0.00018,2]
[323767003,1714260646838,-500.0,0.00018,2]
[323767004,1714260646851,-500.0,0.00018,2]
[323767005,1714260646861,-500.0,0.00018,2]
[323767006,1714260646872,-500.0,0.00018,2]
[323767007,1714260646883,-500.0,0.00018,2]
[323767008,1714260646893,-500.0,0.00018,2]
[323767009,1714260646903,-500.0,0.00018,2]
[323767010,1714260646913,-500.0,0.00018,2]
[323767011,1714260646924,-500.0,0.00018,2]
[323767012,1714260646935,-500.0,0.00018,2]
[323767013,1714260646946,-500.0,0.00018,2]
[323767014,1714260646958,-500.0,0.00018,2]
[323767015,1714260646968,-500.0,0.00018,2]
[323767016,1714260646978,-500.0,0.00018,2]
[323767017,1714260646988,-500.0,0.00018,2]
[323767018,1714260646998,-500.0,0.00018,2]
[323767019,1714260647008,-500.0,0.00018,2]
[323767020,1714260647018,-500.0,0.00018,2]
[323767021,1714260647028,-500.0,0.00018,2]
[323767022,1714260647038,-500.0,0.00018,2]
[323767023,1714260647048,-500.0,0.00018,2]
[323767024,1714260647057,-500.0,0.00018,2]
[323767025,1714260647066,-500.0,0.00018,2]
[323767026,1714260647075,-500.0,0.00018,2]
[323767027,1714260647084,-500.0,0.00018,2]
[323767028,1714260647094,-500.0,0.00018,2]
[323767029,1714260647104,-500.0,0.00018,2]
[323767030,1714260647115,-500.0,0.00018,2]
[323767031,1714260647125,-500.0,0.00018,2]
[323767032,1714260647136,-500.0,0.00018,2]
[323767033,1714260647146,-500.0,0.00018,2]
[323767034,1714260647156,-500.0,0.00018,2]
[323767035,1714260647166,-500.0,0.00018,2]
[323767036,1714260647176,-500.0,0.00018,2]
[323767037,1714260647185,-500.0,0.00018,2]
[323767038,1714260647195,-500.0,0.00018,2]
[323767039,1714260647205,-500.0,0.00018,2]
[323767040,1714260647216,-500.0,0.00018,2]
[323767041,1714260647227,-500.0,0.00018,2]
[323767042,1714260647237,-500.0,0.00018,2]
[323767043,1714260647246,-500.0,0.00018,2]
[323767044,1714260647256,-500.0,0.00018,2]
[323767045,1714260647266,-500.0,0.00018,2]
[323767046,1714260647276,-500.0,0.00018,2]
[323767047,1714260647285,-500.0,0.00018,2]
[323767048,1714260647295,-500.0,0.00018,2]
[323767049,1714260647304,-500.0,0.00018,2]
[323767050,1714260647314,-500.0,0.00018,2]
[323767051,1714260647325,-500.0,0.00018,2]
[323767052,1714260647335,-500.0,0.00018,2]
[323767053,1714260647346,-500.0,0.00018,2]
[323767054,1714260647357,-500.0,0.00018,2]
[323767055,1714260647367,-500.0,0.00018,2]
[323767056,1714260647377,-500.0,0.00018,2]
[323767057,1714260647388,-500.0,0.00018,2]
[323767058,1714260647397,-500.0,0.00018,2]
[323767059,1714260647408,-500.0,0.00018,2]
[323767060,1714260647418,-500.0,0.00018,2]
[323767061,1714260647429,-500.0,0.00018,2]
[323767062,1714260647438,-500.0,0.00018,2]
[323767063,1714260647447,-500.0,0.00018,2]
[323767064,1714260647458,-500.0,0.00018,2]
[323767065,1714260647468,-500.0,0.00018,2]
[323767066,1714260647478,-500.0,0.00018,2]
[323767067,1714260647488,-500.0,0.00018,2]
[323767068,1714260647498,-500.0,0.00018,2]
[323767069,1714260647511,-500.0,0.00018,2]
[323767070,1714260647522,-500.0,0.00018,2]
[323767071,1714260647534,-500.0,0.00018,2]
[323767072,1714260647546,-500.0,0.00018,2]
[323767073,1714260647556,-500.0,0.00018,2]
[323767074,1714260647566,-500.0,0.00018,2]
[323767075,1714260647576,-500.0,0.00018,2]
[323767076,1714260647587,-500.0,0.00018,2]
[323767077,1714260647600,-500.0,0.00018,2]
[323767078,1714260647611,-500.0,0.00018,2]
[323767079,1714260647622,-500.0,0.00018,2]
[323767080,1714260647632,-500.0,0.00018,2]
[323767081,1714260647644,-500.0,0.00018,2]
[323767082,1714260647654,-500.0,0.00018,2]
[323767083,1714260647666,-500.0,0.00018,2]
[323767084,1714260647676,-500.0,0.00018,2]
[323767085,1714260647686,-500.0,0.00018,2]